bitfinex-derivatives/quotes_SOLF0:USTF0_20250630
["timestamp","ask_amount","ask_price","bid_price","bid_amount"]
[1751242422578,34.04,153.37,153.27,6.53481296]
[1751242422883,34.04,153.37,153.28,6.53481296]
[1751242423081,34.04,153.37,153.29,6.53481296]
[1751242423285,34.04,153.37,153.3,8.87081296]
[1751242423484,34.04,153.37,153.31,6.53481296]
[1751242423788,34.04,153.37,153.32,6.53481296]
[1751242423981,34.04,153.37,153.33,5.216]
[1751242424486,5.2153,153.36,153.32,5.2164]
[1751242424680,5.2153,153.36,153.33,6.54823704]
[1751242424877,5.2153,153.36,153.32,5.2164]
[1751242425088,5.2153,153.36,153.33,6.54823704]
[1751242425278,5.2155,153.35,153.32,5.2164]
[1751242425586,34.04,153.37,153.31,5.2166]
[1751242425982,5.2158,153.35,153.31,5.2166]
[1751242426186,34.04,153.37,153.26,6.05171414]
[1751242426585,5.2155,153.35,153.27,10.55651414]
[1751242426888,34.04,153.37,153.3,5.217]
[1751242427089,5.2159,153.34,153.3,5.217]
[1751242427388,34.04,153.37,153.31,5.2168]
[1751242427582,34.04,153.37,153.29,34.04]
[1751242427583,5.2157,153.35,153.29,34.04]
[1751242427783,34.04,153.37,153.33,5.2158]
[1751242428186,39.2551,153.37,153.29,36.3748]
[1751242428389,39.2551,153.37,153.3,6.05171414]
[1751242428791,5.2152,153.36,153.31,6.05171414]
[1751242429589,39.2549,153.37,153.33,5.2159]
[1751242429785,34.04,153.37,153.33,5.2159]
[1751242430590,5.2151,153.36,153.33,5.2159]
[1751242430984,34.04,153.37,153.29,40.09171414]
[1751242431190,5.216,153.34,153.3,6.05171414]
[1751242431486,5.216,153.34,153.31,5.2166]
[1751242432989,5.2156,153.35,153.32,5.2165]
[1751242433397,39.2549,153.37,153.34,5.2158]
[1751242433688,5.2149,153.37,153.34,5.2158]
[1751242433883,5.2149,153.37,153.33,5.216]
[1751242434588,5.2152,153.36,153.33,5.216]
[1751242434787,5.2152,153.36,153.32,5.2164]
[1751242434987,5.2152,153.36,153.31,6.05171414]
[1751242436287,5.2152,153.36,153.33,5.216]
[1751242436688,5.2155,153.35,153.33,5.216]
[1751242437000,5.2155,153.35,153.32,5.2163]
[1751242439092,5.2151,153.36,153.33,5.216]
[1751242439292,2.2692,153.39,153.33,5.216]
[1751242439891,2.2692,153.39,153.32,5.2164]
[1751242440583,2.2692,153.39,153.33,5.2161]
[1751242440992,2.2692,153.39,153.3,6.05171414]
[1751242441192,33.94,153.4,153.31,6.05171414]
[1751242441394,2.2851,153.41,153.32,6.05171414]
[1751242441594,2.2317,153.47,153.34,6.05171414]
[1751242441893,36.1381,153.46,153.36,6.05171414]
[1751242442193,36.1381,153.46,153.37,33.94]
[1751242442388,36.1381,153.46,153.36,33.94]
[1751242442590,5.2128,153.43,153.39,5.2139]
[1751242443193,5.2128,153.43,153.4,5.2137]
[1751242443492,5.2132,153.42,153.36,33.94]
[1751242444697,5.2129,153.43,153.36,33.94]
[1751242445194,36.1381,153.46,153.36,33.94]
[1751242445387,33.94,153.46,153.36,39.99171414]
[1751242445589,2.2317,153.47,153.36,39.99171414]
[1751242445790,5.2118,153.46,153.43,5.2126]
[1751242447096,33.92,153.49,153.4,33.92]
[1751242447692,33.92,153.49,153.4,39.1337]
[1751242448700,5.2128,153.43,153.4,39.1337]
[1751242449000,33.92,153.49,153.39,2.3286]
[1751242449396,5.2133,153.42,153.39,7.5427]
[1751242450494,5.2133,153.42,153.39,2.3286]
[1751242452200,5.2136,153.41,153.39,2.3286]
[1751242453602,5.2136,153.41,153.38,5.2143]
[1751242454003,5.2136,153.41,153.37,39.1347]
[1751242454799,5.2139,153.4,153.37,39.1347]
[1751242455201,5.2143,153.39,153.37,33.92]
[1751242455905,5.2139,153.4,153.37,33.92]
[1751242457307,5.2136,153.41,153.37,33.92]
[1751242457504,4.3867,153.44,153.37,33.92]
[1751242457703,4.3867,153.44,153.37,39.1348]
[1751242458104,4.3867,153.44,153.37,33.92]
[1751242458508,5.2135,153.41,153.38,5.2144]
[1751242458813,4.3867,153.44,153.37,33.92]
[1751242459012,5.2133,153.42,153.39,5.2141]
[1751242459314,4.3867,153.44,153.37,33.92]
[1751242459810,5.2135,153.41,153.38,5.2142]
[1751242463414,5.2138,153.4,153.37,39.1347]
[1751242463610,4.3867,153.44,153.37,33.92]
[1751242465618,5.214,153.4,153.37,39.1348]
[1751242466117,66.88713808,153.51,153.37,33.92]
[1751242466418,65.08463293,153.51,153.39,6.05171414]
[1751242466822,5.2119,153.46,153.41,5.2131]
[1751242467020,65.08463293,153.51,153.38,8.40681414]
[1751242467221,5.2127,153.44,153.4,5.2135]
[1751242468319,33.84,153.46,153.37,39.89171414]
[1751242468518,4.2713,153.45,153.37,33.84]
[1751242469622,5.2134,153.42,153.38,5.2142]
[1751242471123,5.2135,153.41,153.37,39.0547]
[1751242472021,5.2138,153.4,153.37,33.84]
[1751242473525,5.2138,153.4,153.37,39.0547]
[1751242473933,5.2138,153.4,153.37,33.84]
[1751242474826,5.2138,153.4,153.37,5.2147]
[1751242475029,33.84,153.39,153.3,6.05171414]
[1751242475228,40.7239,153.39,153.3,6.05171414]
[1751242475430,40.7239,153.39,153.29,6.05171414]
[1751242475631,40.7239,153.39,153.28,5.2176]
[1751242476328,5.2167,153.32,153.28,5.2176]
[1751242476528,40.7239,153.39,153.28,5.2176]
[1751242476929,5.2169,153.31,153.28,5.2176]
[1751242477130,33.84,153.35,153.27,6.05171414]
[1751242477330,33.84,153.35,153.26,8.29021414]
[1751242477730,5.2167,153.32,153.28,5.2178]
[1751242478429,5.2169,153.31,153.28,5.2178]
[1751242479130,5.2169,153.31,153.27,5.2182]
[1751242479534,5.2169,153.31,153.26,8.29021414]
[1751242480234,5.2166,153.32,153.28,5.2177]
[1751242483836,33.84,153.35,153.26,8.29021414]
[1751242484037,33.84,153.38,153.26,8.29021414]
[1751242484240,586.64,153.41,153.28,6.05171414]
[1751242484241,33.84,153.41,153.28,6.05171414]
[1751242484434,33.84,153.41,153.29,38.4161]
[1751242484631,33.84,153.41,153.32,6.05171414]
[1751242484837,5.214,153.4,153.36,5.2149]
[1751242485039,33.84,153.41,153.33,42.03901414]
[1751242485434,5.2142,153.39,153.35,5.2153]
[1751242485738,33.84,153.41,153.33,42.03901414]
[1751242486238,5.2142,153.39,153.35,5.2153]
[1751242486538,5.2142,153.39,153.33,42.03901414]
[1751242487641,5.2142,153.39,153.35,5.2152]
[1751242488240,5.2142,153.39,153.33,42.03901414]
[1751242488241,5.2139,153.4,153.33,42.03901414]
[1751242489036,5.2135,153.41,153.33,42.03901414]
[1751242489244,33.84,153.44,153.33,42.03901414]
[1751242490046,5.2139,153.4,153.36,5.2149]
[1751242490539,33.84,153.44,153.33,42.03901414]
[1751242490732,36.1463,153.44,153.33,42.03901414]
[1751242491243,5.2142,153.39,153.35,5.2153]
[1751242491741,5.2145,153.38,153.35,5.2153]
[1751242499049,5.2143,153.39,153.35,5.2153]
[1751242499844,5.2137,153.41,153.33,42.03901414]
[1751242500043,36.1463,153.44,153.34,6.05171414]
[1751242500245,36.1463,153.44,153.35,6.05171414]
[1751242500851,33.84,153.44,153.35,6.05171414]
[1751242501045,39.0526,153.44,153.4,5.2136]
[1751242501246,2.3176,153.45,153.4,5.2136]
[1751242501446,2.1594,153.49,153.38,33.78]
[1751242501647,38.318,153.5,153.39,8.35711414]
[1751242501847,38.318,153.5,153.39,2.3054]
[1751242502053,38.318,153.5,153.39,8.35711414]
[1751242502253,38.318,153.5,153.39,2.3054]
[1751242502450,38.318,153.5,153.37,33.78]
[1751242502648,38.318,153.5,153.37,38.9946]
[1751242502843,48.7391,153.5,153.37,38.9946]
[1751242503045,48.7391,153.5,153.37,33.78]
[1751242504049,5.2134,153.42,153.39,5.2141]
[1751242504353,33.78,153.44,153.37,33.78]
[1751242504555,33.78,153.45,153.37,33.78]
[1751242505154,5.2127,153.44,153.4,5.2135]
[1751242505551,33.78,153.45,153.37,39.83171414]
[1751242505747,5.2128,153.43,153.39,5.2139]
[1751242506648,33.78,153.45,153.38,5.2144]
[1751242506851,33.78,153.45,153.37,33.78]
[1751242507154,5.2129,153.43,153.39,5.2141]
[1751242507546,33.78,153.45,153.37,33.78]
[1751242507748,5.2134,153.42,153.37,38.9946]
[1751242507951,33.78,153.45,153.37,33.78]
[1751242509153,33.78,153.45,153.37,39.83171414]
[1751242509352,5.213,153.43,153.39,5.2138]
[1751242510054,5.2126,153.44,153.4,5.2138]
[1751242510454,33.78,153.45,153.37,39.83171414]
[1751242510650,5.2123,153.45,153.38,6.05171414]
[1751242510953,33.78,153.48,153.39,6.05171414]
[1751242511146,5.2119,153.46,153.42,5.2129]
[1751242511347,33.78,153.48,153.41,33.78]
[1751242511851,4.538,153.5,153.41,33.78]
[1751242512446,5.2113,153.48,153.44,5.2122]
[1751242513350,5.2113,153.48,153.45,5.2121]
[1751242513558,5.2109,153.49,153.45,5.2121]
[1751242514555,5.2109,153.49,153.46,5.2117]
[1751242514756,5.2109,153.49,153.42,2.1452]
[1751242515056,5.2109,153.49,153.42,8.19691414]
[1751242515256,5.2109,153.49,153.45,5.212]
[1751242515756,5.2115,153.47,153.43,5.2126]
[1751242516055,2.2529,153.5,153.42,2.1452]
[1751242516555,2.2529,153.5,153.44,5.2123]
[1751242517357,5.2113,153.48,153.44,5.2123]
[1751242518259,5.2114,153.47,153.44,5.2123]
[1751242518558,5.2114,153.47,153.43,5.2128]
[1751242519260,2.2529,153.5,153.42,5.2129]
[1751242519459,2.2529,153.5,153.38,6.05171414]
[1751242519658,2.3305,153.49,153.38,39.83171414]
[1751242519858,5.2127,153.44,153.4,5.2135]
[1751242521363,5.2128,153.43,153.4,5.2135]
[1751242523963,35.9952,153.48,153.41,5.2134]
[1751242524164,35.9952,153.48,153.38,33.78]
[1751242524365,35.9952,153.48,153.39,2.3464]
[1751242524565,5.212,153.46,153.42,5.2128]
[1751242525965,5.2115,153.47,153.43,5.2127]
[1751242526367,2.2529,153.5,153.42,33.74]
[1751242526563,2.2529,153.5,153.44,5.2123]
[1751242526767,5.2113,153.48,153.44,5.2123]
[1751242528370,2.2529,153.5,153.45,5.2121]
[1751242528371,5.2109,153.49,153.45,5.2121]
[1751242530974,5.2111,153.48,153.45,5.2121]
[1751242532376,5.2111,153.48,153.44,5.2124]
[1751242532677,5.2109,153.49,153.42,33.74]
[1751242533072,2.2529,153.5,153.42,39.79171414]
[1751242533377,2.2529,153.5,153.42,33.74]
[1751242533577,2.2529,153.5,153.45,5.212]
[1751242534777,5.2112,153.48,153.45,5.212]
[1751242535384,5.2115,153.47,153.42,33.74]
[1751242536578,5.2115,153.47,153.44,5.2124]
[1751242539885,5.2112,153.48,153.44,5.2124]
[1751242540184,5.2112,153.48,153.45,5.212]
[1751242541383,5.2108,153.49,153.45,5.212]
[1751242541579,33.74,153.51,153.42,39.79171414]
[1751242541786,33.74,153.51,153.42,42.07991414]
[1751242542182,5.2106,153.5,153.46,5.2116]
[1751242542583,5.2106,153.5,153.43,6.05171414]
[1751242542885,5.2102,153.51,153.47,5.2114]
[1751242543182,4.4462,153.53,153.47,5.2114]
[1751242544687,5.2103,153.51,153.47,5.2114]
[1751242546090,5.2098,153.52,153.48,5.2109]
[1751242546792,5.2101,153.51,153.48,5.2109]
[1751242547490,5.2098,153.52,153.48,5.2109]
[1751242548093,5.2101,153.51,153.47,5.2113]
[1751242549393,5.2104,153.5,153.47,5.2113]
[1751242550093,5.2109,153.49,153.46,33.72]
[1751242550789,2.2207,153.53,153.46,33.72]
[1751242551494,5.2109,153.49,153.46,38.9317]
[1751242555592,5.2109,153.49,153.46,33.72]
[1751242557500,5.2109,153.49,153.46,38.9317]
[1751242558104,5.2105,153.5,153.46,38.9317]
[1751242559495,5.2102,153.51,153.46,33.72]
[1751242560602,5.2102,153.51,153.48,5.211]
[1751242561702,2.2207,153.53,153.46,33.72]
[1751242562302,5.211,153.49,153.46,39.77171414]
[1751242563600,5.211,153.49,153.46,44.98321414]
[1751242564203,5.211,153.49,153.47,5.2114]
[1751242565601,5.211,153.49,153.46,44.98331414]
[1751242567103,5.2111,153.48,153.46,44.98331414]
[1751242568305,2.2207,153.53,153.47,5.2112]
[1751242569211,5.2107,153.5,153.47,5.2112]
[1751242569508,2.2207,153.53,153.46,44.98341414]
[1751242570209,5.211,153.49,153.46,44.98341414]
[1751242571210,5.211,153.49,153.47,5.2114]
[1751242571404,5.211,153.49,153.47,11.26311414]
[1751242571913,5.211,153.49,153.47,6.05171414]
[1751242572613,5.2105,153.5,153.47,6.05171414]
[1751242572809,2.2207,153.53,153.47,6.05171414]
[1751242573214,5.2109,153.49,153.47,6.05171414]
[1751242573615,8.27587374,153.53,153.46,38.9317]
[1751242574209,8.27587374,153.53,153.46,44.98341414]
[1751242574412,5.2107,153.5,153.46,44.98341414]
[1751242576322,5.2107,153.49,153.47,6.05171414]
[1751242576622,5.2107,153.49,153.46,44.98341414]
[1751242577626,5.2107,153.49,153.46,39.77171414]
[1751242578430,5.2107,153.49,153.46,44.98341414]
[1751242578630,5.2107,153.49,153.47,6.05171414]
[1751242579828,5.2107,153.49,153.46,38.9317]
[1751242580329,2.2207,153.53,153.46,33.72]
[1751242580526,2.2207,153.53,153.43,33.68]
[1751242580734,2.2207,153.53,153.39,588.5864]
[1751242580735,4.4765,153.53,153.39,2.3464]
[1751242580932,4.4765,153.53,153.35,33.68]
[1751242581231,12.19660777,153.48,153.35,33.68]
[1751242581431,5.2148,153.38,153.35,47.91672687]
[1751242581633,33.68,153.42,153.34,6.10145437]
[1751242581932,33.68,153.41,153.33,6.10145437]
[1751242582232,5.2147,153.38,153.34,5.2156]
[1751242582433,33.68,153.41,153.33,6.10145437]
[1751242582734,5.2144,153.39,153.35,5.2153]
[1751242582929,33.68,153.41,153.33,6.10145437]
[1751242583126,5.2141,153.39,153.33,6.10145437]
[1751242584635,5.2141,153.39,153.32,39.78145437]
[1751242584835,33.68,153.41,153.34,5.2158]
[1751242585240,33.68,153.41,153.32,33.68]
[1751242585631,33.68,153.41,153.32,39.78145437]
[1751242586527,5.2144,153.39,153.32,39.78145437]
[1751242587137,5.2144,153.39,153.34,5.2156]
[1751242587637,5.2144,153.39,153.32,39.78145437]
[1751242588336,5.2144,153.39,153.32,33.68]
[1751242589337,5.2144,153.39,153.35,5.2153]
[1751242590938,5.2139,153.4,153.36,5.2151]
[1751242591233,33.68,153.41,153.32,33.68]
[1751242592037,5.2143,153.39,153.35,5.2153]
[1751242592639,5.2139,153.4,153.36,5.2151]
[1751242592840,33.68,153.41,153.32,33.68]
[1751242593339,33.68,153.41,153.36,5.215]
[1751242593340,5.2138,153.4,153.36,5.215]
[1751242594239,33.62,153.44,153.32,33.68]
[1751242594741,5.2133,153.42,153.38,5.2143]
[1751242595240,5.2129,153.43,153.36,33.62]
[1751242595439,5.2129,153.43,153.37,2.3379]
[1751242595831,5.2129,153.43,153.39,5.2139]
[1751242597337,5.2129,153.43,153.4,5.2138]
[1751242602342,5.2131,153.42,153.4,5.2138]
[1751242602542,5.2131,153.42,153.39,5.214]
[1751242605651,5.2136,153.41,153.38,5.2144]
[1751242605847,5.2136,153.41,153.37,2.3379]
[1751242607046,5.2132,153.42,153.37,2.3379]
[1751242607347,33.62,153.5,153.37,2.3379]
[1751242607552,33.62,153.5,153.38,10.57655437]
[1751242607751,33.62,153.5,153.44,5.2122]
[1751242607951,33.62,153.5,153.43,33.62]
[1751242608246,5.2116,153.47,153.43,38.8326]
[1751242608653,5.2116,153.47,153.43,33.62]
[1751242609751,5.2118,153.46,153.43,33.62]
[1751242611457,5.2112,153.48,153.44,5.2123]
[1751242612249,5.2114,153.47,153.44,5.2123]
[1751242613257,5.2118,153.46,153.43,38.8326]
[1751242613456,33.62,153.5,153.43,38.8326]
[1751242614355,5.2114,153.47,153.43,38.8326]
[1751242615658,5.2114,153.47,153.44,5.2124]
[1751242616354,33.62,153.5,153.4,33.62]
[1751242616955,5.2121,153.45,153.42,5.213]
[1751242619262,33.62,153.5,153.4,33.62]
[1751242619661,5.2114,153.47,153.43,5.2128]
[1751242619964,33.62,153.5,153.43,5.2128]
[1751242620455,5.212,153.46,153.44,5.2124]
[1751242620662,33.62,153.5,153.4,33.62]
[1751242620862,33.62,153.5,153.41,39.64145437]
[1751242621065,5.2109,153.49,153.41,39.64145437]
[1751242621659,5.2109,153.49,153.45,5.2118]
[1751242622663,5.2112,153.48,153.45,5.2118]
[1751242622865,5.2112,153.48,153.44,5.2123]
[1751242623063,4.4541,153.52,153.41,33.54]
[1751242624065,5.2115,153.47,153.43,5.2126]
[1751242624662,5.2119,153.46,153.43,5.2126]
[1751242625361,33.54,153.49,153.41,33.54]
[1751242625966,5.2124,153.45,153.41,38.7533]
[1751242627369,5.2124,153.45,153.42,5.213]
[1751242627667,5.2119,153.46,153.42,5.213]
[1751242628368,5.2115,153.47,153.43,5.2127]
[1751242628568,33.54,153.49,153.43,5.2127]
[1751242629368,5.2116,153.47,153.43,5.2127]
[1751242629568,33.54,153.49,153.43,5.2127]
[1751242630570,5.2119,153.46,153.43,5.2127]
[1751242635271,5.2116,153.47,153.43,5.2127]
[1751242637872,5.2112,153.48,153.41,33.54]
[1751242638472,5.2115,153.47,153.43,5.2125]
[1751242639572,5.2117,153.46,153.43,5.2125]
[1751242641774,5.2121,153.45,153.42,5.213]
[1751242641972,5.2121,153.45,153.41,33.54]
[1751242642472,5.2118,153.46,153.41,33.54]
[1751242642673,33.54,153.49,153.41,33.54]
[1751242642874,33.54,153.49,153.41,39.64145437]
[1751242643367,33.54,153.49,153.42,5.213]
[1751242643873,5.2122,153.45,153.42,5.213]
[1751242647672,5.2122,153.45,153.41,44.85475437]
[1751242648578,33.54,153.49,153.41,6.10145437]
[1751242648778,33.54,153.49,153.4,6.10145437]
[1751242648779,2.2008,153.48,153.4,6.10145437]
[1751242649273,5.213,153.43,153.41,6.10145437]
[1751242649479,5.213,153.43,153.4,11.31525437]
[1751242649978,33.48,153.45,153.4,6.10145437]
[1751242651573,5.2134,153.42,153.4,6.10145437]
[1751242653379,5.2134,153.41,153.4,6.10145437]
[1751242654584,33.48,153.41,153.37,8.12176774]
[1751242654788,33.48,153.41,153.34,12.20290875]
[1751242655982,5.2152,153.36,153.34,12.20290875]
[1751242656178,2.3099,153.4,153.34,12.20290875]
[1751242656385,4.6458,153.4,153.34,12.20290875]
[1751242657185,5.2155,153.35,153.33,12.20290875]
[1751242657378,4.6458,153.4,153.32,12.20290875]
[1751242658183,4.6458,153.4,153.31,17.41950875]
[1751242658380,4.6458,153.4,153.32,17.41940875]
[1751242658580,4.6458,153.4,153.32,12.20290875]
[1751242658981,4.6458,153.4,153.3,12.20290875]
[1751242659784,2.2218,153.39,153.29,35.7322]
[1751242660381,5.2159,153.34,153.31,5.2167]
[1751242660582,2.2218,153.39,153.29,35.7322]
[1751242661181,2.2218,153.39,153.31,5.2166]
[1751242661786,5.2158,153.35,153.31,5.2166]
[1751242662084,2.2218,153.39,153.31,5.2166]
[1751242662685,5.2158,153.35,153.31,5.2166]
[1751242662886,2.2218,153.39,153.29,35.7322]
[1751242663580,5.215,153.37,153.34,5.2158]
[1751242666382,5.2146,153.38,153.34,5.2158]
[1751242666685,2.3099,153.4,153.34,5.2158]
[1751242667185,5.2147,153.38,153.34,5.2158]
[1751242667382,5.2147,153.38,153.35,5.2155]
[1751242667584,5.2144,153.39,153.31,2.2441]
[1751242668083,5.2144,153.39,153.35,5.2153]
[1751242668480,5.2144,153.39,153.33,33.5]
[1751242668887,33.48,153.41,153.33,33.5]
[1751242669188,33.48,153.41,153.35,5.2153]
[1751242669391,5.2147,153.38,153.33,33.5]
[1751242669590,33.48,153.41,153.33,33.5]
[1751242669790,5.2154,153.36,153.33,33.5]
[1751242670091,5.2154,153.36,153.32,5.2163]
[1751242670688,5.2155,153.35,153.32,5.2163]
[1751242673289,8.35530398,153.43,153.29,2.2522]
[1751242673493,59.15750398,153.42,153.25,622.2253]
[1751242673992,5.2169,153.31,153.28,5.2176]
[1751242674190,5.2169,153.31,153.25,35.7853]
[1751242674390,5.2169,153.31,153.27,5.218]
[1751242674594,5.2166,153.32,153.25,35.7853]
[1751242674893,5.2166,153.32,153.28,5.2177]
[1751242675287,5.2163,153.33,153.25,35.7853]
[1751242675489,33.5,153.34,153.25,35.7853]
[1751242676795,5.2166,153.32,153.27,5.2179]
[1751242676987,5.2166,153.32,153.26,2.99495068]
[1751242677394,5.2166,153.32,153.28,5.2177]
[1751242678595,5.2169,153.31,153.27,5.2181]
[1751242680299,5.2166,153.32,153.28,5.2179]
[1751242681004,5.2169,153.31,153.28,5.2179]
[1751242681302,2.99495068,153.33,153.28,5.2179]
[1751242681504,33.5,153.34,153.28,2.99495068]
[1751242682205,38.7161,153.34,153.3,5.2169]
[1751242682702,5.2161,153.34,153.3,5.2169]
[1751242683904,8.21055068,153.35,153.31,5.2168]
[1751242684301,2.99495068,153.33,153.25,2.2853]
[1751242684501,2.99495068,153.33,153.26,5.2185]
[1751242684502,5.2174,153.3,153.26,5.2185]
[1751242684706,2.99495068,153.31,153.26,5.2185]
[1751242685508,5.2175,153.29,153.26,5.2185]
[1751242685810,5.2175,153.29,153.25,2.2853]
[1751242685811,2.99495068,153.31,153.25,7.5041]
[1751242686408,5.2177,153.29,153.25,7.5041]
[1751242687509,5.2179,153.28,153.24,38.6591]
[1751242687707,5.2179,153.28,153.24,33.44]
[1751242688405,8.21265068,153.29,153.25,5.2187]
[1751242688607,2.99495068,153.29,153.25,5.2187]
[1751242689510,5.2179,153.28,153.25,5.2187]
[1751242689810,2.99495068,153.29,153.25,5.2187]
[1751242690004,2.99495068,153.31,153.26,5.2185]
[1751242691508,5.2176,153.29,153.26,5.2185]
[1751242692314,2.99495068,153.29,153.2,43.84868053]
[1751242692514,2.99495068,153.27,153.2,38.77785068]
[1751242692714,2.99495068,153.27,153.2,35.7829]
[1751242692916,2.99495068,153.27,153.24,5.219]
[1751242694410,2.99495068,153.27,153.23,5.2194]
[1751242694816,8.21335068,153.27,153.23,5.2194]
[1751242695413,2.99495068,153.27,153.24,5.2191]
[1751242696317,8.21325068,153.27,153.24,5.2191]
[1751242697318,8.21295068,153.28,153.24,5.2191]
[1751242698521,8.21295068,153.28,153.25,5.2188]
[1751242699616,8.21295068,153.28,153.24,5.2191]
[1751242700419,5.2176,153.29,153.25,5.2187]
[1751242700714,5.26665068,153.32,153.24,36.45495068]
[1751242700920,5.216,153.34,153.28,2.99495068]
[1751242701119,35.6753,153.36,153.28,2.99495068]
[1751242701120,33.46,153.36,153.3,2.99495068]
[1751242702218,5.2156,153.35,153.31,5.2167]
[1751242703219,36.45495068,153.36,153.3,5.217]
[1751242703620,5.216,153.34,153.3,5.217]
[1751242706624,5.2165,153.33,153.29,8.21235068]
[1751242706825,5.2165,153.33,153.29,5.2174]
[1751242707619,5.2165,153.33,153.3,5.2172]
[1751242713728,5.2165,153.33,153.29,5.2174]
[1751242714723,5.2165,153.33,153.3,5.2172]
[1751242721736,2.99495068,153.34,153.3,5.2172]
[1751242721737,8.21095068,153.34,153.3,5.2172]
[1751242721936,8.21095068,153.34,153.31,5.2168]
[1751242722939,2.2962,153.37,153.31,2.99495068]
[1751242723140,2.99495068,153.38,153.31,2.99495068]
[1751242723343,2.99495068,153.38,153.31,9.07040688]
[1751242723536,33.4,153.39,153.31,9.07040688]
[1751242723537,33.4,153.39,153.33,2.99495068]
[1751242723743,2.99495068,153.44,153.37,2.99495068]
[1751242724035,2.99495068,153.45,153.39,5.2141]
[1751242724543,2.99495068,153.45,153.38,2.99495068]
[1751242725238,5.2129,153.43,153.39,5.214]
[1751242726742,5.2129,153.43,153.4,5.2137]
[1751242727749,5.2129,153.43,153.37,36.39495068]
[1751242728042,2.99495068,153.45,153.39,2.99495068]
[1751242728248,2.99495068,153.45,153.42,5.213]
[1751242729548,36.39495068,153.47,153.41,2.99495068]
[1751242729840,36.39495068,153.47,153.41,36.39495068]
[1751242730642,41.60665068,153.47,153.43,5.2126]
[1751242730947,36.39495068,153.47,153.41,33.4]
[1751242731241,5.2123,153.45,153.41,33.4]
[1751242731449,36.39495068,153.47,153.41,33.4]
[1751242732346,36.39495068,153.5,153.43,2.99495068]
[1751242732648,2.99495068,153.52,153.45,2.99495068]
[1751242732839,2.99495068,153.52,153.45,36.39495068]
[1751242734647,5.2101,153.51,153.47,5.2112]
[1751242735446,5.2105,153.5,153.46,5.2117]
[1751242736741,5.2102,153.51,153.47,5.2113]
[1751242737142,2.99495068,153.48,153.41,33.38]
[1751242737345,2.99495068,153.46,153.38,38.59085068]
[1751242737848,2.99495068,153.46,153.41,5.2132]
[1751242738847,5.2123,153.45,153.41,5.2132]
[1751242743757,5.2123,153.45,153.38,35.5959]
[1751242743961,5.2125,153.44,153.38,35.5959]
[1751242744463,5.2125,153.44,153.4,5.2136]
[1751242744661,5.2125,153.44,153.38,35.5959]
[1751242744863,2.99495068,153.46,153.39,2.99495068]
[1751242745062,2.99495068,153.48,153.39,2.99495068]
[1751242745556,5.2123,153.45,153.39,2.99495068]
[1751242745762,2.99495068,153.48,153.42,5.2131]
[1751242745962,2.99495068,153.48,153.39,2.99495068]
[1751242746162,5.2116,153.47,153.41,2.99495068]
[1751242746362,5.2116,153.47,153.43,5.2126]
[1751242746764,5.2116,153.47,153.42,33.32]
[1751242747460,2.99495068,153.5,153.44,2.99495068]
[1751242747863,5.2109,153.49,153.45,5.212]
[1751242749863,5.2111,153.48,153.45,5.212]
[1751242750168,2.99495068,153.5,153.45,5.212]
[1751242750369,5.2109,153.49,153.45,5.212]
[1751242751866,2.99495068,153.5,153.45,5.212]
[1751242752064,5.2111,153.48,153.43,2.99495068]
[1751242752269,33.32,153.52,153.43,2.99495068]
[1751242752470,5.2109,153.49,153.43,2.99495068]